Workbook

Sheet Лист1
A1: № рецептуры | B1: Наименование блюд | C1: Выход,г | D1: Белки, г | E1: Жиры, г | F1: Углеводы, г | G1: Калорийность, ккал | H1: Витамин B1, мг | I1: Витамин С, мг | J1: Витамин А, мг | K1: Витамин Е, мг | L1: Ca, мг | M1: P, мг | N1: Mg, мг | O1: Fe, мг
B2: 1-ая неделя
B3: 1 день
A4: ТТК | B4: Котлета из мяса птицы | C4: 90 | D4: 10.20 | E4: 12.93 | F4: 13.79 | G4: 198.00 | H4: 0.09 | I4: 0.94 | J4: 46.26 | K4: 2.52 | L4: 47.83 | M4: 85.09 | N4: 18.72 | O4: 1.26
A5: № 203 Сбор.рец. На прод-ию для обуч. Во всех образ.учреж-Дели 2017 | B5: Макаронные изделия отварные с маслом сливочным | C5: 150/5 | D5: 5.70 | E5: 4.30 | F5: 31.99 | G5: 189.30 | H5: 0.06 | I5: 0.00 | J5: 20.00 | K5: 0.82 | L5: 12.39 | M5: 38.67 | N5: 8.62 | O5: 0.86
A6: ТТК | B6: Зеленый горошек к/с (доп.гарнир) | C6: 20 | D6: 0.35 | E6: 1.00 | F6: 1.40 | G6: 16.02 | H6: 0.01 | I6: 0.27 | J6: 6.76 | K6: 0.06 | L6: 5.85 | M6: 5.88 | N6: 1.96 | O6: 0.08
A7: №349 Сбор.рец. На прод-ию для обуч. Во всех образ.учреж-Дели 2017 | B7: Компот из сухофруктов (75С) | C7: 200 | D7: 0.66 | E7: 0.09 | F7: 22.03 | G7: 92.80 | H7: 0.02 | I7: 0.73 | J7: 0.00 | K7: 0.51 | L7: 32.18 | M7: 23.44 | N7: 17.46 | O7: 0.67
A8: Хим.состав и калорийность российских продуктов питания,табл 6, стр 144 , 2012 Дели + | B8: Хлеб ржаной | C8: 30 | D8: 1.98 | E8: 0.36 | F8: 11.88 | G8: 59.40 | H8: 0.05 | I8: 0.00 | J8: 0.00 | K8: 0.42 | L8: 8.70 | M8: 45.00 | N8: 14.10 | O8: 1.17
B9: Итого: | C9: 535 | D9: =SUM(D4:D8) -> 18.89 | E9: 18.68 | F9: 81.09 | G9: 555.52 | H9: 0.22 | I9: 1.93 | J9: 73.02 | K9: 4.33 | L9: 106.95 | M9: 198.07 | N9: 60.86 | O9: 4.04
B11: 2 день
A12: Хим.состав и калорийность российских продуктов питания табл 9 стр 184 , 2012 Дели + | B12: Плоды и ягоды свежие (яблоки) | C12: 100 | D12: 0.40 | E12: 0.40 | F12: 9.80 | G12: 47.00 | H12: 0.03 | I12: 10.00 | K12: 0.20 | L12: 16.00 | M12: 11.00 | N12: 9.00 | O12: 2.20
A13: № 175,219 Сбор.рец. На прод-ию для обуч. Во всех образ.учреж-Дели 2017 | B13: Сырники из творога с молочной кашей "Дружба" | C13: 50/150 | D13: 12.92 | E13: 14.39 | F13: 31.09 | G13: 292.26 | H13: 0.11 | I13: 0.85 | J13: 51.58 | K13: 1.52 | L13: 178.25 | M13: 229.27 | N13: 39.46 | O13: 0.94
A14: № 376 Сбор.рец. На прод-ию для обуч. Во всех образ.учреж-Дели 2017 | B14: Чай с сахаром | C14: 190/10 | D14: 0.07 | E14: 0.02 | F14: 10.01 | G14: 40.00 | H14: 0.00 | I14: 0.03 | J14: 0.00 | K14: 0.00 | L14: 10.95 | M14: 2.80 | N14: 1.40 | O14: 0.27
A15: Хим.состав и калорийность российских продуктов питания,табл 6, стр 144 , 2012 Дели + | B15: Хлеб ржаной | C15: 40 | D15: 2.64 | E15: 0.48 | F15: 15.84 | G15: 79.20 | H15: 0.07 | I15: 0.00 | J15: 0.00 | K15: 0.56 | L15: 11.60 | M15: 60.00 | N15: 18.80 | O15: 1.56
B16: Итого: | C16: 540 | D16: =SUM(D12:D15) -> 16.03 | E16: 15.29 | F16: 66.74 | G16: 458.46 | H16: 0.20 | I16: 10.88 | J16: 51.58 | K16: 2.28 | L16: 216.80 | M16: 303.07 | N16: 68.66 | O16: 4.96
B19: 3 день
A20: № 15 Сбор.рец. На прод-ию для обуч. Во всех образ.учреж-Дели -2017 | B20: Сыр порционно | C20: 10 | D20: 2.63 | E20: 2.66 | F20: 0.00 | G20: 34.33 | H20: 0.00 | I20: 0.07 | J20: 21.00 | K20: 0.04 | L20: 100.00 | M20: 60.00 | N20: 5.50 | O20: 0.07
A21: № 260 Сбор.рец. На прод-ию для обуч. Во всех образ.учреж-Дели -2017 | B21: Гуляш из говядины | C21: 50/50 | D21: 10.39 | E21: 14.79 | F21: 10.30 | G21: 221.00 | H21: 0.03 | I21: 0.92 | K21: 2.61 | L21: 21.81 | M21: 154.15 | N21: 22.03 | O21: 3.06
A22: № 171 Сбор.рец. На прод-ию для обуч. Во всех образ.учреж-Дели 2017 | B22: Каша гречневая рассыпчатая | C22: 150 | D22: 3.77 | E22: 2.29 | F22: 39.72 | G22: 214.00 | H22: 0.21 | I22: 0.00 | J22: 0.00 | K22: 0.40 | L22: 23.99 | M22: 207.35 | N22: 140.52 | O22: 4.71
A23: № 377 Сбор.рец. На прод-ию для обуч. Во всех образ.учреж-Дели 2017 | B23: Чай с сахаром, с лимоном | C23: 185/10/5 | D23: 0.11 | E23: 0.02 | F23: 10.15 | G23: 41.32 | H23: -0.00 | I23: 2.03 | J23: 0.00 | K23: 0.01 | L23: 13.25 | M23: 3.96 | N23: 2.16 | O23: 0.33
A24: Хим.состав и калорийность российских продуктов питания табл 6 стр 134 , 2012 Дели + | B24: Хлеб ржаной | C24: 50 | D24: 3.30 | E24: 0.60 | F24: 19.80 | G24: 99.00 | H24: 0.09 | I24: 0.00 | J24: 0.00 | K24: 0.70 | L24: 14.50 | M24: 75.00 | N24: 23.50 | O24: 1.95
B25: Итого: | C25: 510 | D25: =SUM(D20:D24) -> 20.20 | E25: =SUM(E20:E24) -> 20.36 | F25: 79.97 | G25: 609.65 | H25: 0.33 | I25: 3.02 | J25: 21.00 | K25: 3.76 | L25: 173.55 | M25: 500.46 | N25: 193.71 | O25: 10.12
B32: 4 день
A33: № 52 Сбор.рец. На прод-ию для обуч. Во всех образ.учреж-Дели -2017 | B33: Салат из свеклы отварной с маслом растительным | C33: 60 | D33: 0.84 | E33: 3.61 | F33: 4.96 | G33: 55.68 | H33: 0.01 | I33: 3.99 | J33: 0.00 | K33: 1.62 | L33: 21.28 | M33: 24.38 | N33: 12.42 | O33: 0.79
A34: ТТК | B34: Котлета из мяса птицы | C34: 90 | D34: 10.20 | E34: 12.93 | F34: 13.79 | G34: 198.00 | H34: 0.09 | I34: 0.94 | J34: 46.26 | K34: 2.52 | L34: 47.83 | M34: 85.09 | N34: 18.72 | O34: 1.26
A35: № 312 Сбор.рец. На прод-ию для обуч. Во всех образ.учреж-Дели -2017 | B35: Пюре картофельное с маслом сливочным | C35: 150/3 | D35: 4.11 | E35: 3.55 | F35: 30.79 | G35: 202.80 | H35: 0.19 | I35: 24.21 | J35: 12.00 | K35: 0.27 | L35: 50.02 | M35: 116.36 | N35: 37.00 | O35: 1.35
A36: № 376 Сбор.рец. На прод-ию для обуч. Во всех образ.учреж-Дели 2017 | B36: Чай с сахаром, с яблоком | C36: 180/10/10 | D36: 0.11 | E36: 0.06 | F36: 10.98 | G36: 44.70 | H36: 0.00 | I36: 1.03 | J36: 0.00 | K36: 0.02 | L36: 12.55 | M36: 3.90 | N36: 2.30 | O36: 0.48
A37: Хим.состав и калорийность российских продуктов питания табл 6 стр 134 , 2012 Дели + | B37: Хлеб пшеничный | C37: 20 | D37: 1.52 | E37: 0.16 | F37: 9.84 | G37: 47.00 | H37: 0.02 | I37: 0.00 | J37: 0.00 | K37: 0.22 | L37: 4.00 | M37: 13.00 | N37: 2.80 | O37: 0.22
A38: Хим.состав и калорийность российских продуктов питания,табл 6, стр 144 , 2012 Дели + | B38: Хлеб ржаной | C38: 30 | D38: 1.98 | E38: 0.36 | F38: 11.88 | G38: 59.40 | H38: 0.05 | I38: 0.00 | J38: 0.00 | K38: 0.42 | L38: 8.70 | M38: 45.00 | N38: 14.10 | O38: 1.17
B39: Итого: | C39: 553 | D39: =D33+D34+D35+D36+D37+D38 -> 18.76 | E39: =E33+E34+E35+E36+E37+E38 -> 20.66 | F39: 82.24 | G39: 607.58 | H39: 0.36 | I39: 30.17 | J39: 58.26 | K39: 5.07 | L39: 144.37 | M39: 287.73 | N39: 87.34 | O39: 5.28
B41: 5 день
A42: Хим.состав и калорийность российских продуктов питания табл 9 стр 184 , 2012 Дели + | B42: Плоды и ягоды свежие (яблоки) | C42: 100 | D42: 0.40 | E42: 0.40 | F42: 9.80 | G42: 47.00 | H42: 0.03 | I42: 10.00 | K42: 0.20 | L42: 16.00 | M42: 11.00 | N42: 9.00 | O42: 2.20
A43: № 15 Сбор.рец. На прод-ию для обуч. Во всех образ.учреж-Дели 2017 | B43: Сыр порционно | C43: 10 | D43: 2.63 | E43: 2.66 | F43: 0.00 | G43: 34.33 | H43: 0.00 | I43: 0.07 | J43: 21.00 | K43: 0.04 | L43: 100.00 | M43: 60.00 | N43: 5.50 | O43: 0.07
A44: №279,331 Сбор.рец. На прод-ию для питания детей в дошк образоват учрежд-Дели 2017 | B44: Тефтели мясные в сметанно-томатном соусе | C44: 60/40 | D44: 7.28 | E44: 11.94 | F44: 8.36 | G44: 123.99 | H44: 0.05 | I44: 0.28 | J44: 29.62 | K44: 0.42 | L44: 20.73 | M44: 80.20 | N44: 15.52 | O44: 0.64
A45: № 379 Сбор.рец. На прод-ию для обуч. Во всех образ.учреж-Дели 2017 | B45: Кофейный напиток с молоком (сахар 20г) | C45: 200 | D45: 3.17 | E45: 2.68 | F45: 15.95 | G45: 100.60 | H45: 0.04 | I45: 1.30 | J45: 20.00 | K45: 0.00 | L45: 125.78 | M45: 90.00 | N45: 14.00 | O45: 0.13
A46: Хим.состав и калорийность российских продуктов питания табл 6 стр 134 , 2012 Дели + | B46: Хлеб пшеничный | C46: 25 | D46: 1.90 | E46: 0.20 | F46: 12.30 | G46: 58.75 | H46: 0.03 | I46: 0.00 | J46: 0.00 | K46: 0.28 | L46: 5.00 | M46: 16.25 | N46: 3.50 | O46: 0.28
A47: № 203 Сбор.рец. На прод-ию для обуч. Во всех образ.учреж-Дели 2017 | B47: Макаронные изделия отварные | C47: 150 | D47: 4.77 | E47: 2.82 | F47: 33.45 | G47: 194.45 | H47: 0.06 | I47: 0.00 | J47: 8.00 | K47: 0.79 | L47: 11.67 | M47: 37.77 | N47: 8.62 | O47: 0.86
C48: 585 | D48: =SUM(D42:D47) -> 20.15 | E48: =SUM(E42:E47) -> 20.70 | F48: 79.86 | G48: 559.12 | H48: 0.21 | I48: 11.65 | J48: 78.62 | K48: 1.73 | L48: 279.18 | M48: 295.22 | N48: 56.14 | O48: 4.18
B50: 6 день
A51: № 136 Сбор.рец. На прод-ию для обуч. Во всех образ.учреж-Дели -2017 | B51: Капуста припущенная | C51: 60 | D51: 0.65 | E51: 1.25 | F51: 2.74 | G51: 22.80 | H51: 0.01 | I51: 11.89 | J51: 0.00 | K51: 9.24 | L51: 31.35 | M51: 20.37 | N51: 9.61 | O51: 0.40
A52: № 234 Сбор.рец. На прод-ию для обуч. Во всех образ.учреж-Дели 2015 | B52: Биточки рыбные | C52: 90 | D52: 13.17 | E52: 10.70 | F52: 15.79 | G52: 193.30 | H52: 0.09 | I52: 0.94 | J52: 46.26 | K52: 2.52 | L52: 47.83 | M52: 85.09 | N52: 18.72 | O52: 1.26
A53: № 302 Сбор.рец. На прод-ию для обуч. Во всех образ.учреж-Дели 2015 | B53: Рис отварной рассыпчатый с маслом сливочным | C53: 150/3 | D53: 3.63 | E53: 6.50 | F53: 37.58 | G53: 223.35 | H53: 0.03 | I53: 0.00 | J53: 12.00 | K53: 0.29 | L53: 6.03 | M53: 78.81 | N53: 25.46 | O53: 0.53
A54: № 377 Сбор.рец. На прод-ию для обуч. Во всех образ.учреж-Дели 2017 | B54: Чай с сахаром, с лимоном | C54: 185/10/5 | D54: 0.11 | E54: 0.02 | F54: 10.15 | G54: 41.32 | H54: -0.00 | I54: 2.03 | J54: 0.00 | K54: 0.01 | L54: 13.25 | M54: 3.96 | N54: 2.16 | O54: 0.33
A55: Хим.состав и калорийность российских продуктов питания,табл 6, стр 144 , 2012 Дели + | B55: Хлеб ржаной | C55: 30 | D55: 1.98 | E55: 0.36 | F55: 11.88 | G55: 59.40 | H55: 0.05 | I55: 0.00 | J55: 0.00 | K55: 0.42 | L55: 8.70 | M55: 45.00 | N55: 14.10 | O55: 1.17
B56: Итого: | C56: 553 | D56: =SUM(D51:D55) -> 19.54 | E56: =SUM(E51:E55) -> 18.83 | F56: 78.13 | G56: 540.17 | H56: 0.18 | I56: 14.85 | J56: 58.26 | K56: 12.48 | L56: 107.15 | M56: 233.23 | N56: 70.04 | O56: 3.69
B57: Итого за 6 дней 1 недели: | C57: =C9+C16+C25+C39+C48+C56 -> 3276 | D57: 113.58 | E57: 114.51 | F57: 468.03 | G57: 3330.50 | H57: 1.51 | I57: 72.50 | J57: 340.74 | K57: 29.64 | L57: 1028.00 | M57: 1817.78 | N57: 536.74 | O57: 32.27
B69: 2-ая неделя
B70: 1 день
A71: ТТК | B71: Котлета из мяса птицы | C71: 90 | D71: 10.20 | E71: 12.93 | F71: 13.79 | G71: 198.00 | H71: 0.09 | I71: 0.94 | J71: 46.26 | K71: 2.52 | L71: 47.83 | M71: 85.09 | N71: 18.72 | O71: 1.26
A72: № 182 Сбор.рец. На прод-ию для обуч. Во всех образ.учреж-Дели 2017 | B72: Каша пшенная молочная с маслом сливочным | C72: 180/3 | D72: 4.09 | E72: 5.08 | F72: 37.26 | G72: 216.90 | H72: 0.17 | I72: 1.05 | J72: 28.20 | K72: 0.13 | L72: 122.85 | M72: 164.13 | N72: 42.84 | O72: 1.10
A73: № 376 Сбор.рец. На прод-ию для обуч. Во всех образ.учреж-Дели 2017 | B73: Чай "Витаминный" с шиповником | C73: 185/10/5 | D73: 0.24 | E73: 0.09 | F73: 12.43 | G73: 54.20 | H73: 0.00 | I73: 50.03 | J73: 0.00 | K73: 0.19 | L73: 13.95 | M73: 3.65 | N73: 2.25 | O73: 0.42
A74: Хим.состав и калорийность российских продуктов питания табл 6 стр 134 , 2012 Дели + | B74: Хлеб пшеничный | C74: 25 | D74: 1.90 | E74: 0.20 | F74: 12.30 | G74: 58.75 | H74: 0.03 | I74: 0.00 | J74: 0.00 | K74: 0.28 | L74: 5.00 | M74: 16.25 | N74: 3.50 | O74: 0.28
A75: Хим.состав и калорийность российских продуктов питания,табл 6, стр 144 , 2012 Дели + | B75: Хлеб ржаной | C75: 30 | D75: 1.98 | E75: 0.36 | F75: 11.88 | G75: 59.40 | H75: 0.05 | I75: 0.00 | J75: 0.00 | K75: 0.42 | L75: 8.70 | M75: 45.00 | N75: 14.10 | O75: 1.17
B76: Итого: | C76: 528 | D76: =SUM(D71:D75) -> 18.40 | E76: =SUM(E71:E75) -> 18.66 | F76: 87.65 | G76: 587.25 | H76: 0.34 | I76: 52.02 | J76: 74.46 | K76: 3.53 | L76: 198.33 | M76: 314.12 | N76: 81.41 | O76: 4.22
B78: 2 день
A79: Хим.состав и калорийность российских продуктов питания табл 9 стр 184 , 2012 Дели + | B79: Плоды и ягоды свежие (яблоки) | C79: 100 | D79: 0.40 | E79: 0.40 | F79: 9.80 | G79: 47.00 | H79: 0.03 | I79: 10.00 | K79: 0.20 | L79: 16.00 | M79: 11.00 | N79: 9.00 | O79: 2.20
A80: № 265 Сбор.рец. На прод-ию для обуч. Во всех образ.учреж-Дели -2017 | B80: Плов из говядины с рисовой крупой | C80: 50/150 | D80: 15.95 | E80: 19.55 | F80: 39.75 | G80: 408.42 | H80: 0.04 | I80: 0.27 | J80: 0.00 | K80: 4.23 | L80: 29.33 | M80: 176.23 | N80: 40.58 | O80: 2.64
A81: № 376 Сбор.рец. На прод-ию для обуч. Во всех образ.учреж-Дели 2017 | B81: Чай с сахаром | C81: 190/10 | D81: 0.07 | E81: 0.02 | F81: 10.01 | G81: 40.00 | H81: 0.00 | I81: 0.03 | J81: 0.00 | K81: 0.00 | L81: 10.95 | M81: 2.80 | N81: 1.40 | O81: 0.27
A82: Хим.состав и калорийность российских продуктов питания табл 6 стр 134 , 2012 Дели + | B82: Хлеб пшеничный | C82: 25 | D82: 1.90 | E82: 0.20 | F82: 12.30 | G82: 58.75 | H82: 0.03 | I82: 0.00 | J82: 0.00 | K82: 0.28 | L82: 5.00 | M82: 16.25 | N82: 3.50 | O82: 0.28
A83: Хим.состав и калорийность российских продуктов питания,табл 6, стр 144 , 2012 Дели + | B83: Хлеб ржаной | C83: 20 | D83: 1.32 | E83: 0.24 | F83: 7.92 | G83: 39.60 | H83: 0.03 | I83: 0.00 | J83: 0.00 | K83: 0.28 | L83: 5.80 | M83: 30.00 | N83: 9.40 | O83: 0.78
B84: Итого: | C84: 545 | D84: =SUM(D79:D83) -> 19.64 | E84: =SUM(E79:E83) -> 20.41 | F84: 79.78 | G84: 593.77 | H84: 0.13 | I84: 10.30 | J84: 0.00 | K84: 4.98 | L84: 67.08 | M84: 236.28 | N84: 63.88 | O84: 6.16
B86: 3 день
A87: № 229 Сбор.рец. На прод-ию для обуч. Во всех образ.учреж-Дели 2017 | B87: Рыба, тушенная в томате с овощами | C87: 50/50 | D87: 9.05 | E87: 6.09 | F87: 3.80 | G87: 105.00 | H87: 0.05 | I87: 3.73 | J87: 5.82 | K87: 2.52 | L87: 39.07 | M87: 162.19 | N87: 48.53 | O87: 0.85
A88: № 312 Сбор.рец. На прод-ию для обуч. Во всех образ.учреж-Дели -2017 | B88: Пюре картофельное | C88: 150 | D88: 3.09 | E88: 6.98 | F88: 20.48 | G88: 157.05 | H88: 0.14 | I88: 18.16 | J88: 12.00 | K88: 0.21 | L88: 37.70 | M88: 87.50 | N88: 27.75 | O88: 1.02
A89: № 321 Сбор.рец. На прод-ию для обуч. Во всех образ.учреж-Дели -2017 | B89: Капуста тушеная (доп. гарнир) | C89: 50 | D89: 1.03 | E89: 1.62 | F89: 4.71 | G89: 37.55 | H89: 0.01 | I89: 8.58 | J89: 0.00 | K89: 0.87 | L89: 27.73 | M89: 20.07 | N89: 10.33 | O89: 0.40
A90: №342 Сбор.рец. На прод-ию для обуч. Во всех образ.учреж-Дели 2017 | B90: Компот из свежих яблок (75С) | C90: 200 | D90: 0.16 | E90: 0.16 | F90: 17.90 | G90: 74.60 | H90: 0.01 | I90: 0.90 | J90: 0.00 | K90: 0.08 | L90: 13.88 | M90: 4.40 | N90: 5.14 | O90: 0.92
A91: Хим.состав и калорийность российских продуктов питания табл 6 стр 134 , 2012 Дели + | B91: Хлеб пшеничный | C91: 35 | D91: 2.66 | E91: 0.28 | F91: 17.22 | G91: 82.25 | H91: 0.04 | I91: 0.00 | J91: 0.00 | K91: 0.39 | L91: 7.00 | M91: 22.75 | N91: 4.90 | O91: 0.39
B92: Итого: | C92: 538 | D92: =SUM(D87:D91) -> 15.99 | E92: =SUM(E87:E91) -> 15.13 | F92: 64.11 | G92: 456.45 | H92: 0.25 | I92: 31.37 | J92: 17.82 | K92: 4.06 | L92: 125.37 | M92: 296.91 | N92: 96.65 | O92: 3.58
B99: 4 день
A100: ТТК | B100: Тефтели куриные с гречневой крупой в сметанно-томатном соусе | C100: 60/40 | D100: 3.17 | E100: 5.19 | F100: 9.85 | G100: 118.01 | H100: 0.07 | I100: 0.28 | J100: 29.62 | K100: 0.46 | L100: 21.68 | M100: 92.80 | N100: 26.56 | O100: 1.04
A101: № 203 Сбор.рец. На прод-ию для обуч. Во всех образ.учреж-Дели 2017 | B101: Макаронные изделия отварные с маслом сливочным | C101: 180/3 | D101: 6.64 | E101: 7.60 | F101: 31.78 | G101: 221.94 | H101: 0.07 | I101: 0.00 | J101: 12.00 | K101: 1.19 | L101: 6.55 | M101: 45.50 | N101: 25.34 | O101: 1.33
A102: № 382 Сбор.рец. На прод-ию для обуч. Во всех образ.учреж-Дели 2017 | B102: Какао с молоком | C102: 200 | D102: 4.08 | E102: 3.54 | F102: 7.60 | G102: 78.60 | H102: 0.06 | I102: 1.59 | J102: 24.40 | K102: 0.00 | L102: 151.92 | M102: 124.56 | N102: 21.34 | O102: 0.45
A103: Хим.состав и калорийность российских продуктов питания табл 6 стр 134 , 2012 Дели + | B103: Хлеб пшеничный | C103: 30 | D103: 2.28 | E103: 0.24 | F103: 14.76 | G103: 70.50 | H103: 0.03 | I103: 0.00 | J103: 0.00 | K103: 0.33 | L103: 6.00 | M103: 19.50 | N103: 4.20 | O103: 0.33
B104: Итого: | C104: 513 | D104: =D100+D101+D102+D103 -> 16.17 | E104: 16.57 | F104: 63.98 | G104: 489.05 | H104: 0.22 | I104: 1.86 | J104: 66.02 | K104: 1.98 | L104: 186.15 | M104: 282.37 | N104: 77.44 | O104: 3.15
B106: 5 день
A107: Хим.состав и калорийность российских продуктов питания табл 9 стр 184 , 2012 Дели + | B107: Плоды и ягоды свежие (яблоки) | C107: 100 | D107: 0.40 | E107: 0.40 | F107: 9.80 | G107: 47.00 | H107: 0.03 | I107: 10.00 | K107: 0.20 | L107: 16.00 | M107: 11.00 | N107: 9.00 | O107: 2.20
A108: № 143,241 Сбор.рец. На прод-ию для обуч. Во всех образ.учреж-Дели 2017 | B108: Овощи тушеные с мясом | C108: 50/150 | D108: 12.48 | E108: 15.68 | F108: 19.34 | G108: 271.50 | H108: 0.12 | I108: 18.77 | J108: 39.00 | K108: 4.67 | L108: 59.15 | M108: 148.63 | N108: 39.69 | O108: 2.23
A109: №349 Сбор.рец. На прод-ию для обуч. Во всех образ.учреж-Дели 2017 | B109: Компот из сухофруктов (75С) | C109: 200 | D109: 0.66 | E109: 0.09 | F109: 22.03 | G109: 92.80 | H109: 0.02 | I109: 0.73 | J109: 0.00 | K109: 0.51 | L109: 32.18 | M109: 23.44 | N109: 17.46 | O109: 0.67
A110: Хим.состав и калорийность российских продуктов питания табл 6 стр 134 , 2012 Дели + | B110: Хлеб пшеничный | C110: 30 | D110: 2.28 | E110: 0.24 | F110: 14.76 | G110: 70.50 | H110: 0.03 | I110: 0.00 | J110: 0.00 | K110: 0.33 | L110: 6.00 | M110: 19.50 | N110: 4.20 | O110: 0.33
B111: Итого: | C111: 530 | D111: =SUM(D107:D110) -> 15.82 | E111: =SUM(E107:E110) -> 16.41 | F111: 65.93 | G111: 481.80 | H111: 0.20 | I111: 29.49 | J111: 39.00 | K111: 5.71 | L111: 113.33 | M111: 202.57 | N111: 70.35 | O111: 5.42
B113: 6 день
A114: ТТК | B114: Салат из отварной моркови и свеклы с зеленым горошком к/с | C114: 60 | D114: 0.96 | E114: 2.11 | F114: 4.33 | G114: 40.50 | H114: 0.03 | I114: 3.70 | J114: 0.00 | K114: 1.04 | L114: 17.99 | M114: 28.61 | N114: 15.62 | O114: 0.56
A115: ТТК | B115: Котлеты "Аппетитные" | C115: 90 | D115: 12.90 | E115: 12.15 | F115: 13.15 | G115: 214.20 | H115: 0.12 | I115: 0.41 | J115: 6.21 | K115: 32.29 | L115: 30.51 | M115: 109.69 | N115: 23.76 | O115: 2.83
A116: № 171 Сбор.рец. На прод-ию для обуч. Во всех образ.учреж-Дели 2017 | B116: Каша гречневая рассыпчатая с маслом сливочным | C116: 150/3 | D116: 3.79 | E116: 4.47 | F116: 39.76 | G116: 233.80 | H116: 0.21 | I116: 0.00 | J116: 0.00 | K116: 0.40 | L116: 24.89 | M116: 208.07 | N116: 140.52 | O116: 4.78
A117: №366 Сбор.рец. На прод-ию для обуч. Во всех образ.учреж-Дели 2016 | B117: Соус томатный | C117: 20 | D117: 0.15 | E117: 0.84 | F117: 1.60 | G117: 14.90 | H117: 0.00 | I117: 0.48 | J117: 4.80 | K117: 0.05 | L117: 3.18 | M117: 4.45 | N117: 2.30 | O117: 0.10
A118: № 377 Сбор.рец. На прод-ию для обуч. Во всех образ.учреж-Дели 2017 | B118: Чай с сахаром, с лимоном | C118: 185/10/5 | D118: 0.11 | E118: 0.02 | F118: 10.15 | G118: 41.32 | H118: -0.00 | I118: 2.03 | J118: 0.00 | K118: 0.01 | L118: 13.25 | M118: 3.96 | N118: 2.16 | O118: 0.33
A119: Хим.состав и калорийность российских продуктов питания табл 6 стр 134 , 2012 Дели + | B119: Хлеб пшеничный | C119: 30 | D119: 2.28 | E119: 0.24 | F119: 14.76 | G119: 70.50 | H119: 0.03 | I119: 0.00 | J119: 0.00 | K119: 0.33 | L119: 6.00 | M119: 19.50 | N119: 4.20 | O119: 0.33
B120: Итого: | C120: 533 | D120: =SUM(D114:D119) -> 20.20 | E120: 19.83 | F120: 83.75 | G120: 615.22 | H120: 0.39 | I120: 6.61 | J120: 11.01 | K120: 34.12 | L120: 95.82 | M120: 374.28 | N120: 188.56 | O120: 8.93
B121: Итого за 6 дней 2 недели: | C121: =C76+C84+C92+C104+C111+C120 -> 3187 | D121: =D76+D84+D92+D104+D111+D120 -> 106.2127733 | E121: 107.00725 | F121: 445.20259 | G121: 3223.536667 | H121: 1.532356667 | I121: 131.6532 | J121: 208.31 | K121: 54.38117 | L121: 786.0674467 | M121: 1706.517973 | N121: 578.2899833 | O121: 31.46310667
B122: ВСЕГО за 12 дней: | C122: =C9+C16+C25+C39+C48+C56+C76+C84+C92+C104+C111+C120 -> 6463 | D122: =D9+D16+D25+D39+D48+D56+D76+D84+D92+D104+D111+D120 -> 219.79 | E122: 221.52 | F122: 913.23 | G122: 6554.04 | H122: 3.04 | I122: 204.15 | J122: 549.05 | K122: 84.02 | L122: 1814.07 | M122: 3524.29 | N122: 1115.03 | O122: 63.73
B123: В среднем на 1 учащегося в день: | C123: =C122/12 -> 539 | D123: =D122/12 -> 18.32 | E123: 18.46 | F123: 76.10 | G123: 546.17 | H123: 0.25 | I123: 17.01 | J123: 45.75 | K123: 7.00 | L123: 151.17 | M123: 293.69 | N123: 92.92 | O123: 5.31

Sheet Лист2

Sheet Лист3
